[Event "*** Titled Tuesday Blitz"]
[Site "Chess.com"]
[Date "2020.11.24"]
[Round "4"]
[White "ajdemipopushi"]
[Black "MatyChess1"]
[Result "1-0"]
[WhiteElo "2450"]
[BlackElo "2592"]
[TimeControl "180+1"]
[EndTime "10:55:38 PST"]
[Termination "ajdemipopushi won by resignation"]

1. Nf3 {[%clk 0:03:00.9]} 1... d5 {[%clk 0:02:59.1]} 2. g3 {[%clk 0:03:01.2]}
2... Nd7 {[%clk 0:02:58.4]} 3. d4 {[%clk 0:03:00.5]} 3... Nb6 {[%clk 0:02:56]}
4. Bg2 {[%clk 0:03:00.2]} 4... Bf5 {[%clk 0:02:56.3]} 5. Nbd2 {[%clk 0:02:51.7]}
5... c6 {[%clk 0:02:48.3]} 6. b3 {[%clk 0:02:51.5]} 6... e6 {[%clk 0:02:48]} 7.
a4 {[%clk 0:02:44.1]} 7... a5 {[%clk 0:02:44.4]} 8. O-O {[%clk 0:02:43.4]} 8...
Nf6 {[%clk 0:02:39.7]} 9. h3 {[%clk 0:02:42.9]} 9... h6 {[%clk 0:02:38.1]} 10.
c4 {[%clk 0:02:31.2]} 10... Bb4 {[%clk 0:02:35.6]} 11. Ba3 {[%clk 0:02:21.2]}
11... Bxa3 {[%clk 0:02:15.6]} 12. Rxa3 {[%clk 0:02:20.6]} 12... Qe7 {[%clk
0:02:16.5]} 13. Ra1 {[%clk 0:02:19.4]} 13... Qb4 {[%clk 0:02:15.8]} 14. Qc1
{[%clk 0:02:11.9]} 14... O-O {[%clk 0:02:14]} 15. e3 {[%clk 0:02:06.3]} 15...
Rac8 {[%clk 0:02:11.4]} 16. c5 {[%clk 0:02:02.1]} 16... Nbd7 {[%clk 0:02:11.2]}
17. Ne1 {[%clk 0:01:30.6]} 17... b6 {[%clk 0:02:07.4]} 18. e4 {[%clk 0:01:20.1]}
18... dxe4 {[%clk 0:01:43.1]} 19. Nc2 {[%clk 0:01:15.5]} 19... Qc3 {[%clk
0:01:40.6]} 20. cxb6 {[%clk 0:00:56.7]} 20... Nxb6 {[%clk 0:01:41.5]} 21. Re1
{[%clk 0:00:55.3]} 21... c5 {[%clk 0:01:28.5]} 22. Re3 {[%clk 0:00:49.3]} 22...
Qxc2 {[%clk 0:01:09.1]} 23. Qxc2 {[%clk 0:00:47.8]} 23... cxd4 {[%clk 0:01:10]}
24. Nc4 {[%clk 0:00:29.1]} 24... dxe3 {[%clk 0:01:06.7]} 25. fxe3 {[%clk
0:00:29.4]} 25... Nxc4 {[%clk 0:00:36.8]} 26. bxc4 {[%clk 0:00:29]} 26... Rc5
{[%clk 0:00:33.1]} 27. g4 {[%clk 0:00:24.9]} 27... Bg6 {[%clk 0:00:32.8]} 28.
Rc1 {[%clk 0:00:23.5]} 28... Rfc8 {[%clk 0:00:32.4]} 29. Qd2 {[%clk 0:00:21.1]}
29... h5 {[%clk 0:00:08.8]} 30. g5 {[%clk 0:00:20.4]} 30... Rxg5 {[%clk
0:00:08.3]} 31. Kh2 {[%clk 0:00:20.1]} 31... Rgc5 {[%clk 0:00:08.5]} 32. Qd4
{[%clk 0:00:19.6]} 32... Bf5 {[%clk 0:00:08.5]} 33. Rc2 {[%clk 0:00:18.1]} 33...
Kh7 {[%clk 0:00:07.1]} 34. Bf1 {[%clk 0:00:18]} 34... Bg6 {[%clk 0:00:06.8]} 35.
Rb2 {[%clk 0:00:17.4]} 35... Rf5 {[%clk 0:00:05.6]} 36. Bg2 {[%clk 0:00:16.7]}
36... Rfc5 {[%clk 0:00:05.1]} 37. Bf1 {[%clk 0:00:16.4]} 37... R5c7 {[%clk
0:00:02.8]} 38. Qb6 {[%clk 0:00:14.8]} 38... Nd7 {[%clk 0:00:03.1]} 39. Qxa5
{[%clk 0:00:14.6]} 39... Rc5 {[%clk 0:00:03.4]} 40. Qe1 {[%clk 0:00:13.4]} 40...
Ne5 {[%clk 0:00:04.3]} 41. Qf2 {[%clk 0:00:13.7]} 41... Nf3+ {[%clk 0:00:03.6]}
42. Kh1 {[%clk 0:00:14.1]} 42... Rg5 {[%clk 0:00:03.9]} 43. Bg2 {[%clk
0:00:14.2]} 43... Nh4 {[%clk 0:00:03.4]} 44. Qxh4 {[%clk 0:00:13.5]} 44... Rxc4
{[%clk 0:00:03.7]} 45. Qxg5 {[%clk 0:00:13.9]} 45... Rc1+ {[%clk 0:00:03.4]} 46.
Kh2 {[%clk 0:00:14.5]} 1-0

[Event "*** Titled Tuesday Blitz"]
[Site "Chess.com"]
[Date "2020.11.24"]
[Round "4"]
[White "vaishali2001"]
[Black "MillyNeuf"]
[Result "1-0"]
[WhiteElo "2593"]
[BlackElo "2395"]
[TimeControl "180+1"]
[EndTime "10:55:38 PST"]
[Termination "vaishali2001 won on time"]

1. d4 {[%clk 0:03:00.9]} 1... Nf6 {[%clk 0:02:59.5]} 2. Bg5 {[%clk 0:03:00.8]}
2... d5 {[%clk 0:02:57.5]} 3. Nc3 {[%clk 0:02:59.3]} 3... c6 {[%clk 0:02:54.3]}
4. Qd2 {[%clk 0:02:50.6]} 4... Nbd7 {[%clk 0:02:53.5]} 5. f3 {[%clk 0:02:43]}
5... h6 {[%clk 0:02:50.1]} 6. Bh4 {[%clk 0:02:42.7]} 6... e5 {[%clk 0:02:38.1]}
7. e4 {[%clk 0:01:57.4]} 7... Be7 {[%clk 0:02:11]} 8. dxe5 {[%clk 0:01:47.2]}
8... Nxe5 {[%clk 0:02:06.4]} 9. O-O-O {[%clk 0:01:43.3]} 9... Be6 {[%clk
0:01:47.1]} 10. f4 {[%clk 0:01:24.2]} 10... Ng6 {[%clk 0:01:41.9]} 11. Bxf6
{[%clk 0:01:13.5]} 11... Bxf6 {[%clk 0:01:39.3]} 12. e5 {[%clk 0:00:53.4]} 12...
Be7 {[%clk 0:01:31.5]} 13. Nf3 {[%clk 0:00:51.7]} 13... Qb6 {[%clk 0:01:13.2]}
14. Bd3 {[%clk 0:00:48.2]} 14... Bg4 {[%clk 0:00:55.7]} 15. e6 {[%clk
0:00:31.8]} 15... Bxf3 {[%clk 0:00:44.6]} 16. exf7+ {[%clk 0:00:30]} 16... Kf8
{[%clk 0:00:38]} 17. Bxg6 {[%clk 0:00:22.1]} 17... Bxd1 {[%clk 0:00:33.7]} 18.
Rxd1 {[%clk 0:00:18.9]} 18... Bf6 {[%clk 0:00:27.3]} 19. Re1 {[%clk 0:00:13.6]}
19... Be7 {[%clk 0:00:14.8]} 20. Qe2 {[%clk 0:00:12.2]} 20... Qc7 {[%clk
0:00:14.1]} 21. Qe6 {[%clk 0:00:11.2]} 21... d4 {[%clk 0:00:07.1]} 22. Ne4
{[%clk 0:00:10.3]} 22... Rd8 {[%clk 0:00:05.9]} 23. Ng3 {[%clk 0:00:06.2]} 23...
Qd7 {[%clk 0:00:06.1]} 24. Qb3 {[%clk 0:00:04.4]} 24... b5 {[%clk 0:00:04.6]}
25. Nf5 {[%clk 0:00:04.1]} 25... Bf6 {[%clk 0:00:02.1]} 26. Re8+ {[%clk
0:00:03.8]} 26... Rxe8 {[%clk 0:00:02.2]} 27. fxe8=Q+ {[%clk 0:00:04.3]} 27...
Qxe8 {[%clk 0:00:02.9]} 28. Bxe8 {[%clk 0:00:04.9]} 28... Kxe8 {[%clk
0:00:03.8]} 29. Qe6+ {[%clk 0:00:05.4]} 29... Kd8 {[%clk 0:00:03.6]} 30. Qd6+
{[%clk 0:00:05]} 30... Ke8 {[%clk 0:00:02]} 31. Qxc6+ {[%clk 0:00:04.6]} 31...
Kf7 {[%clk 0:00:02.4]} 32. Qd7+ {[%clk 0:00:03.6]} 32... Kg6 {[%clk 0:00:02.9]}
33. g4 {[%clk 0:00:03.7]} 33... Rd8 {[%clk 0:00:03]} 34. Qe6 {[%clk 0:00:03.3]}
34... Kh7 {[%clk 0:00:01.5]} 35. Ne7 {[%clk 0:00:03.4]} 35... Bxe7 {[%clk
0:00:01.5]} 36. Qxe7 {[%clk 0:00:04.3]} 36... Rb8 {[%clk 0:00:01.5]} 37. Qe4+
{[%clk 0:00:04.3]} 37... Kh8 {[%clk 0:00:01.6]} 38. Qxd4 {[%clk 0:00:05.2]}
38... Rf8 {[%clk 0:00:01.8]} 39. f5 {[%clk 0:00:05.4]} 1-0

[Event "*** Titled Tuesday Blitz"]
[Site "Chess.com"]
[Date "2020.11.24"]
[Round "4"]
[White "alexrustemov"]
[Black "BlixLT"]
[Result "1-0"]
[WhiteElo "2651"]
[BlackElo "2355"]
[TimeControl "180+1"]
[EndTime "10:55:39 PST"]
[Termination "alexrustemov won on time"]

1. d4 {[%clk 0:03:00.9]} 1... d5 {[%clk 0:02:59.3]} 2. c4 {[%clk 0:03:00.5]}
2... Nc6 {[%clk 0:02:59.6]} 3. Nf3 {[%clk 0:02:59.5]} 3... Bg4 {[%clk
0:02:58.3]} 4. cxd5 {[%clk 0:02:58.4]} 4... Bxf3 {[%clk 0:02:58.3]} 5. gxf3
{[%clk 0:02:59.3]} 5... Qxd5 {[%clk 0:02:58.4]} 6. e3 {[%clk 0:03:00]} 6... e5
{[%clk 0:02:58.2]} 7. Nc3 {[%clk 0:03:00.5]} 7... Bb4 {[%clk 0:02:57.9]} 8. Bd2
{[%clk 0:03:01.1]} 8... Bxc3 {[%clk 0:02:58.4]} 9. bxc3 {[%clk 0:03:01.7]} 9...
Qd6 {[%clk 0:02:58.5]} 10. Rb1 {[%clk 0:03:01]} 10... b6 {[%clk 0:02:46.9]} 11.
h4 {[%clk 0:02:47.5]} 11... Nge7 {[%clk 0:02:43.1]} 12. h5 {[%clk 0:02:46.7]}
12... O-O-O {[%clk 0:02:37.2]} 13. Bd3 {[%clk 0:02:30.1]} 13... g6 {[%clk
0:02:36.1]} 14. Qb3 {[%clk 0:02:17.4]} 14... f5 {[%clk 0:02:21.7]} 15. Bc1
{[%clk 0:01:52.7]} 15... Kb8 {[%clk 0:02:01.6]} 16. Ba3 {[%clk 0:01:51.8]} 16...
Qd7 {[%clk 0:02:02]} 17. hxg6 {[%clk 0:01:48.9]} 17... hxg6 {[%clk 0:01:57.5]}
18. Rxh8 {[%clk 0:01:48.3]} 18... Rxh8 {[%clk 0:01:57.6]} 19. Qf7 {[%clk
0:01:48.7]} 19... exd4 {[%clk 0:01:05.1]} 20. cxd4 {[%clk 0:01:46.1]} 20... Nxd4
{[%clk 0:00:50.5]} 21. exd4 {[%clk 0:01:41.3]} 21... Qxd4 {[%clk 0:00:49]} 22.
Kd2 {[%clk 0:00:51]} 22... Rd8 {[%clk 0:00:28.5]} 23. Rb3 {[%clk 0:00:47.3]}
23... Qxf2+ {[%clk 0:00:27.2]} 24. Kc1 {[%clk 0:00:47.4]} 24... Qe1+ {[%clk
0:00:22.5]} 25. Kb2 {[%clk 0:00:45.2]} 25... Nc6 {[%clk 0:00:15.1]} 26. Qf6
{[%clk 0:00:39.1]} 26... Kb7 {[%clk 0:00:10.8]} 27. Rc3 {[%clk 0:00:38.4]} 27...
Qd2+ {[%clk 0:00:06.5]} 28. Bc2 {[%clk 0:00:37.3]} 28... Qd5 {[%clk 0:00:04.4]}
29. Qxg6 {[%clk 0:00:34.7]} 29... Rd7 {[%clk 0:00:03.6]} 30. Bb3 {[%clk
0:00:32]} 30... Qd2+ {[%clk 0:00:03.3]} 31. Rc2 {[%clk 0:00:32.5]} 31... Qd4+
{[%clk 0:00:03.6]} 32. Kb1 {[%clk 0:00:32.2]} 32... Na5 {[%clk 0:00:03.4]} 33.
Qxf5 {[%clk 0:00:30.3]} 33... Nxb3 {[%clk 0:00:03.8]} 34. axb3 {[%clk
0:00:30.5]} 34... Qd1+ {[%clk 0:00:04]} 35. Bc1 {[%clk 0:00:30.3]} 35... Qd4
{[%clk 0:00:02.8]} 36. Qe4+ {[%clk 0:00:27.3]} 36... Qxe4 {[%clk 0:00:03.2]} 37.
fxe4 {[%clk 0:00:28.1]} 37... Re7 {[%clk 0:00:03.7]} 38. Re2 {[%clk 0:00:28]}
38... c5 {[%clk 0:00:03.2]} 39. Kc2 {[%clk 0:00:28.2]} 39... Kc6 {[%clk
0:00:03.6]} 40. Kd3 {[%clk 0:00:28.2]} 40... b5 {[%clk 0:00:04.1]} 41. Ra2
{[%clk 0:00:27.3]} 41... Rd7+ {[%clk 0:00:04.3]} 42. Ke3 {[%clk 0:00:26.4]}
42... Kb6 {[%clk 0:00:04.4]} 43. Bd2 {[%clk 0:00:25.5]} 43... c4 {[%clk
0:00:03.9]} 44. bxc4 {[%clk 0:00:25.1]} 44... bxc4 {[%clk 0:00:04]} 45. Ra3
{[%clk 0:00:23.4]} 45... Kb5 {[%clk 0:00:02.3]} 46. e5 {[%clk 0:00:23]} 1-0

[Event "*** Titled Tuesday Blitz"]
[Site "Chess.com"]
[Date "2020.11.24"]
[Round "4"]
[White "Rodalquilar"]
[Black "Supernotar"]
[Result "1/2-1/2"]
[WhiteElo "2664"]
[BlackElo "2859"]
[TimeControl "180+1"]
[EndTime "10:55:41 PST"]
[Termination "Game drawn by repetition"]

1. d4 {[%clk 0:03:00.9]} 1... d5 {[%clk 0:03:00]} 2. Bf4 {[%clk 0:03:01.1]} 2...
Nf6 {[%clk 0:02:59.2]} 3. e3 {[%clk 0:03:01.4]} 3... e6 {[%clk 0:02:58.9]} 4.
Nf3 {[%clk 0:03:00]} 4... c5 {[%clk 0:02:57.4]} 5. c3 {[%clk 0:02:47.8]} 5...
Bd6 {[%clk 0:02:57]} 6. Bd3 {[%clk 0:02:46.7]} 6... Qc7 {[%clk 0:02:56.5]} 7.
dxc5 {[%clk 0:02:37.2]} 7... Qxc5 {[%clk 0:02:55.4]} 8. O-O {[%clk 0:02:35.9]}
8... O-O {[%clk 0:02:54.5]} 9. Nbd2 {[%clk 0:02:35.5]} 9... Nbd7 {[%clk
0:02:52.5]} 10. Bxd6 {[%clk 0:02:30.7]} 10... Qxd6 {[%clk 0:02:52.4]} 11. e4
{[%clk 0:02:31.6]} 11... b6 {[%clk 0:02:43]} 12. Re1 {[%clk 0:02:28.6]} 12...
dxe4 {[%clk 0:02:38.7]} 13. Nxe4 {[%clk 0:02:28.9]} 13... Qe7 {[%clk 0:02:38.6]}
14. Bc2 {[%clk 0:02:14]} 14... Bb7 {[%clk 0:02:36.8]} 15. Nfg5 {[%clk
0:01:44.5]} 15... h6 {[%clk 0:02:26.1]} 16. Qd6 {[%clk 0:01:35.4]} 16... Qxd6
{[%clk 0:02:09.9]} 17. Nxd6 {[%clk 0:01:36.3]} 17... Bc6 {[%clk 0:02:06.4]} 18.
Nge4 {[%clk 0:01:25.7]} 18... Nxe4 {[%clk 0:02:05]} 19. Bxe4 {[%clk 0:01:18.6]}
19... Bxe4 {[%clk 0:02:03.6]} 20. Rxe4 {[%clk 0:01:19.5]} 20... Nf6 {[%clk
0:01:58]} 21. Rd4 {[%clk 0:01:19.5]} 21... Rfd8 {[%clk 0:01:56.6]} 22. Rad1
{[%clk 0:01:17]} 22... Kf8 {[%clk 0:01:50.6]} 23. f3 {[%clk 0:01:10]} 23... Ke7
{[%clk 0:01:46.5]} 24. c4 {[%clk 0:01:07.7]} 24... Rd7 {[%clk 0:01:38.9]} 25.
Kf2 {[%clk 0:00:45.7]} 25... Rad8 {[%clk 0:01:30.6]} 26. Nb5 {[%clk 0:00:45.9]}
26... a6 {[%clk 0:01:25.4]} 27. Rxd7+ {[%clk 0:00:45.7]} 27... Rxd7 {[%clk
0:01:26]} 28. Nd4 {[%clk 0:00:27]} 28... Rc7 {[%clk 0:01:20.6]} 29. b3 {[%clk
0:00:25.5]} 29... b5 {[%clk 0:01:15.2]} 30. cxb5 {[%clk 0:00:17.6]} 30... axb5
{[%clk 0:01:16.1]} 31. Nxb5 {[%clk 0:00:10.7]} 31... Rc2+ {[%clk 0:01:15.7]} 32.
Ke1 {[%clk 0:00:07.2]} 32... Rxa2 {[%clk 0:01:12.7]} 33. Rd2 {[%clk 0:00:07.4]}
33... Ra1+ {[%clk 0:01:10.5]} 34. Kf2 {[%clk 0:00:07.8]} 34... Rb1 {[%clk
0:01:08.5]} 35. Nd4 {[%clk 0:00:08.2]} 35... Nd5 {[%clk 0:01:01.8]} 36. Ra2
{[%clk 0:00:07.1]} 36... Kf6 {[%clk 0:00:57.7]} 37. h4 {[%clk 0:00:06.1]} 37...
g5 {[%clk 0:00:56.1]} 38. hxg5+ {[%clk 0:00:06]} 38... hxg5 {[%clk 0:00:57]} 39.
g4 {[%clk 0:00:04.5]} 39... Ke5 {[%clk 0:00:54.5]} 40. Rd2 {[%clk 0:00:04.4]}
40... Nf4 {[%clk 0:00:50.5]} 41. Nc6+ {[%clk 0:00:04.3]} 41... Kf6 {[%clk
0:00:50.4]} 42. Nd4 {[%clk 0:00:04.8]} 42... e5 {[%clk 0:00:36.6]} 43. Nf5
{[%clk 0:00:05.1]} 43... Rxb3 {[%clk 0:00:33.7]} 44. Rd6+ {[%clk 0:00:05.2]}
44... Ne6 {[%clk 0:00:33.6]} 45. Ra6 {[%clk 0:00:05.5]} 45... Rb2+ {[%clk
0:00:31.2]} 46. Ke3 {[%clk 0:00:05.4]} 46... Rb3+ {[%clk 0:00:30.6]} 47. Kf2
{[%clk 0:00:05.7]} 47... Kg6 {[%clk 0:00:26.8]} 48. Ra5 {[%clk 0:00:05.7]} 48...
Kf6 {[%clk 0:00:18.1]} 49. Ra6 {[%clk 0:00:05.3]} 1/2-1/2

[Event "*** Titled Tuesday Blitz"]
[Site "Chess.com"]
[Date "2020.11.24"]
[Round "4"]
[White "margarita_2703"]
[Black "RaneshRatnesan"]
[Result "1-0"]
[WhiteElo "2408"]
[BlackElo "2129"]
[TimeControl "180+1"]
[EndTime "10:55:41 PST"]
[Termination "margarita_2703 won by checkmate"]

1. Nf3 {[%clk 0:02:54.7]} 1... Nf6 {[%clk 0:02:58.5]} 2. d4 {[%clk 0:02:45.3]}
2... d5 {[%clk 0:02:58]} 3. c4 {[%clk 0:02:43.5]} 3... c6 {[%clk 0:02:57.8]} 4.
e3 {[%clk 0:02:43.4]} 4... Bf5 {[%clk 0:02:55.4]} 5. Qb3 {[%clk 0:02:42.5]} 5...
Qb6 {[%clk 0:02:52.1]} 6. Nc3 {[%clk 0:02:42.2]} 6... e6 {[%clk 0:02:50.5]} 7.
c5 {[%clk 0:02:41.7]} 7... Qc7 {[%clk 0:02:48.1]} 8. Be2 {[%clk 0:02:38.3]} 8...
Nbd7 {[%clk 0:02:48]} 9. O-O {[%clk 0:02:37.3]} 9... Rb8 {[%clk 0:02:44.5]} 10.
Qa4 {[%clk 0:02:29.9]} 10... a6 {[%clk 0:02:42]} 11. b4 {[%clk 0:02:29.8]} 11...
e5 {[%clk 0:02:41.8]} 12. Qb3 {[%clk 0:02:21.1]} 12... e4 {[%clk 0:02:36.9]} 13.
Nd2 {[%clk 0:02:05.5]} 13... Ng4 {[%clk 0:02:22.8]} 14. Bxg4 {[%clk 0:02:02.8]}
14... Bxg4 {[%clk 0:02:23.7]} 15. h3 {[%clk 0:01:58.2]} 15... Be6 {[%clk
0:02:18.2]} 16. a4 {[%clk 0:01:53.8]} 16... Nf6 {[%clk 0:02:12.9]} 17. b5 {[%clk
0:01:50.6]} 17... Qc8 {[%clk 0:02:06.8]} 18. Rb1 {[%clk 0:01:32.9]} 18... Bxh3
{[%clk 0:01:28.7]} 19. bxa6 {[%clk 0:01:16.8]} 19... b5 {[%clk 0:01:09.1]} 20.
axb5 {[%clk 0:00:56.5]} 20... Bxg2 {[%clk 0:00:57.8]} 21. a7 {[%clk 0:00:53.6]}
21... Ra8 {[%clk 0:00:57.8]} 22. bxc6 {[%clk 0:00:45.9]} 22... Bxf1 {[%clk
0:00:36.6]} 23. Qb8 {[%clk 0:00:40.5]} 23... Bxc5 {[%clk 0:00:29.5]} 24. Qe5+
{[%clk 0:00:23.1]} 24... Be7 {[%clk 0:00:25.9]} 25. Rb8 {[%clk 0:00:19.4]} 25...
O-O {[%clk 0:00:19.3]} 26. Rxc8 {[%clk 0:00:19.3]} 26... Rfxc8 {[%clk 0:00:19]}
27. Qxe7 {[%clk 0:00:19.5]} 27... Bd3 {[%clk 0:00:17.6]} 28. c7 {[%clk
0:00:17.8]} 28... Rxa7 {[%clk 0:00:17.5]} 29. Qd8+ {[%clk 0:00:17.6]} 29... Ne8
{[%clk 0:00:17.6]} 30. Qxc8 {[%clk 0:00:17.2]} 30... Kf8 {[%clk 0:00:16.8]} 31.
Qb8 {[%clk 0:00:16.6]} 31... Rxc7 {[%clk 0:00:17.2]} 32. Nxd5 {[%clk 0:00:16.3]}
32... Rxc1+ {[%clk 0:00:16.9]} 33. Kg2 {[%clk 0:00:16.6]} 33... f6 {[%clk
0:00:13.7]} 34. Qb4+ {[%clk 0:00:15.1]} 34... Kf7 {[%clk 0:00:13.4]} 35. Kg3
{[%clk 0:00:15.2]} 35... Kg6 {[%clk 0:00:14.3]} 36. Nf4+ {[%clk 0:00:14.3]}
36... Kh6 {[%clk 0:00:14.2]} 37. Nxd3 {[%clk 0:00:14.9]} 37... exd3 {[%clk
0:00:15.1]} 38. Qb2 {[%clk 0:00:14.1]} 38... Rg1+ {[%clk 0:00:15.4]} 39. Kh2
{[%clk 0:00:13.7]} 39... Rg5 {[%clk 0:00:15.8]} 40. Qb3 {[%clk 0:00:13.2]} 40...
Nd6 {[%clk 0:00:15.9]} 41. Qxd3 {[%clk 0:00:12.7]} 41... Rh5+ {[%clk 0:00:16.2]}
42. Kg2 {[%clk 0:00:12.8]} 42... Rg5+ {[%clk 0:00:17.1]} 43. Kf1 {[%clk
0:00:13.2]} 43... Nf5 {[%clk 0:00:16]} 44. Nf3 {[%clk 0:00:13.4]} 44... Rg4
{[%clk 0:00:16]} 45. Ke2 {[%clk 0:00:13.6]} 45... Nh4 {[%clk 0:00:16]} 46. d5
{[%clk 0:00:13.3]} 46... Nxf3 {[%clk 0:00:16.1]} 47. Kxf3 {[%clk 0:00:13.7]}
47... f5 {[%clk 0:00:15.2]} 48. d6 {[%clk 0:00:13.8]} 48... Rg6 {[%clk
0:00:13.5]} 49. d7 {[%clk 0:00:13.9]} 49... f4 {[%clk 0:00:14.4]} 50. d8=Q
{[%clk 0:00:13.1]} 50... fxe3 {[%clk 0:00:14.8]} 51. Qh4# {[%clk 0:00:13]} 1-0

[Event "*** Titled Tuesday Blitz"]
[Site "Chess.com"]
[Date "2020.11.24"]
[Round "4"]
[White "lefonghua"]
[Black "Mikasinski"]
[Result "1-0"]
[WhiteElo "2506"]
[BlackElo "2323"]
[TimeControl "180+1"]
[EndTime "10:55:42 PST"]
[Termination "lefonghua won by resignation"]

1. d4 {[%clk 0:03:00.9]} 1... Nf6 {[%clk 0:03:00]} 2. c4 {[%clk 0:03:00.7]} 2...
g6 {[%clk 0:03:00.7]} 3. Nc3 {[%clk 0:03:00.9]} 3... Bg7 {[%clk 0:03:01.4]} 4.
e4 {[%clk 0:03:01.2]} 4... d6 {[%clk 0:03:02.1]} 5. f4 {[%clk 0:03:01.7]} 5...
O-O {[%clk 0:03:02.8]} 6. Nf3 {[%clk 0:03:02.4]} 6... Bg4 {[%clk 0:03:03.4]} 7.
Be2 {[%clk 0:03:02.2]} 7... Nfd7 {[%clk 0:03:03.1]} 8. O-O {[%clk 0:02:59.2]}
8... e5 {[%clk 0:03:03]} 9. fxe5 {[%clk 0:02:59.3]} 9... Bxf3 {[%clk 0:03:02.9]}
10. Bxf3 {[%clk 0:02:59.1]} 10... Nc6 {[%clk 0:03:03.7]} 11. Be3 {[%clk
0:02:29.4]} 11... dxe5 {[%clk 0:03:03.3]} 12. d5 {[%clk 0:02:30.1]} 12... Nd4
{[%clk 0:03:04]} 13. Ne2 {[%clk 0:02:27.5]} 13... Nxf3+ {[%clk 0:02:33.1]} 14.
Rxf3 {[%clk 0:02:26.5]} 14... f5 {[%clk 0:02:33.7]} 15. Nc3 {[%clk 0:02:18.2]}
15... fxe4 {[%clk 0:01:10.5]} 16. Nxe4 {[%clk 0:02:12.4]} 16... Qh4 {[%clk
0:01:10.1]} 17. Rxf8+ {[%clk 0:01:59.9]} 17... Rxf8 {[%clk 0:01:08.9]} 18. Qd3
{[%clk 0:01:54]} 18... b6 {[%clk 0:00:50.2]} 19. Bg5 {[%clk 0:01:35.9]} 19...
Qg4 {[%clk 0:00:47.4]} 20. h3 {[%clk 0:01:34.4]} 20... Qf5 {[%clk 0:00:42.6]}
21. Rf1 {[%clk 0:01:30.4]} 21... Qxf1+ {[%clk 0:00:41.5]} 22. Qxf1 {[%clk
0:01:31.3]} 22... Rxf1+ {[%clk 0:00:41.8]} 23. Kxf1 {[%clk 0:01:32.2]} 23... Bf8
{[%clk 0:00:30.7]} 24. Bd8 {[%clk 0:01:26.5]} 24... Bd6 {[%clk 0:00:29.9]} 25.
Nxd6 {[%clk 0:01:22.6]} 25... cxd6 {[%clk 0:00:30.8]} 26. Bc7 {[%clk 0:01:18.5]}
26... Kf7 {[%clk 0:00:28.9]} 27. Bxd6 {[%clk 0:01:18]} 27... Kf6 {[%clk
0:00:29]} 28. Ke2 {[%clk 0:01:17]} 28... Kf5 {[%clk 0:00:28.7]} 29. Ke3 {[%clk
0:01:15.8]} 29... h5 {[%clk 0:00:28]} 30. b4 {[%clk 0:01:12.8]} 30... a6 {[%clk
0:00:23.4]} 31. a4 {[%clk 0:01:11.1]} 31... b5 {[%clk 0:00:16.5]} 32. cxb5
{[%clk 0:01:07.3]} 32... axb5 {[%clk 0:00:15.3]} 33. a5 {[%clk 0:00:58.7]} 33...
Nf6 {[%clk 0:00:15]} 34. a6 {[%clk 0:00:54.7]} 34... Nxd5+ {[%clk 0:00:15.2]}
35. Kd3 {[%clk 0:00:54.7]} 35... Ke6 {[%clk 0:00:15.1]} 36. a7 {[%clk
0:00:48.8]} 36... Nb6 {[%clk 0:00:14.4]} 37. Bc5 {[%clk 0:00:48.2]} 37... Na8
{[%clk 0:00:14.8]} 38. Ke4 {[%clk 0:00:47.3]} 38... Nc7 {[%clk 0:00:14.9]} 39.
Bb6 {[%clk 0:00:44.6]} 39... Na8 {[%clk 0:00:15]} 40. Ba5 {[%clk 0:00:44.9]}
40... Kd6 {[%clk 0:00:15.4]} 41. h4 {[%clk 0:00:42.6]} 41... Ke6 {[%clk
0:00:15.6]} 42. Kf3 {[%clk 0:00:39.5]} 42... Kd6 {[%clk 0:00:12.2]} 43. g4
{[%clk 0:00:38.4]} 43... Ke6 {[%clk 0:00:05.1]} 44. gxh5 {[%clk 0:00:37.5]}
44... gxh5 {[%clk 0:00:05.6]} 45. Ke4 {[%clk 0:00:34.9]} 45... Kd6 {[%clk
0:00:06]} 46. Bd8 {[%clk 0:00:34.8]} 46... Ke6 {[%clk 0:00:04.7]} 47. Bg5 {[%clk
0:00:34.8]} 47... Nc7 {[%clk 0:00:03.8]} 48. Be3 {[%clk 0:00:34.5]} 48... Na8
{[%clk 0:00:03.5]} 49. Bc1 {[%clk 0:00:34]} 49... Nc7 {[%clk 0:00:03.9]} 50. Bb2
{[%clk 0:00:34.3]} 50... Na8 {[%clk 0:00:01.7]} 51. Bxe5 {[%clk 0:00:34.3]}
51... Nb6 {[%clk 0:00:01.8]} 52. Bd4 {[%clk 0:00:34.3]} 52... Na8 {[%clk
0:00:02.2]} 53. Bc5 {[%clk 0:00:33.9]} 53... Nc7 {[%clk 0:00:02.5]} 54. Kf4
{[%clk 0:00:34.2]} 54... Na8 {[%clk 0:00:01.9]} 55. Kg5 {[%clk 0:00:34.3]} 55...
Kd5 {[%clk 0:00:01.7]} 56. Kxh5 {[%clk 0:00:34.7]} 56... Kc4 {[%clk 0:00:02.3]}
57. Kg6 {[%clk 0:00:35.1]} 57... Nc7 {[%clk 0:00:02.4]} 58. h5 {[%clk
0:00:35.6]} 1-0

[Event "*** Titled Tuesday Blitz"]
[Site "Chess.com"]
[Date "2020.11.24"]
[Round "4"]
[White "Snegokhod"]
[Black "Nachsueb"]
[Result "1-0"]
[WhiteElo "2426"]
[BlackElo "2174"]
[TimeControl "180+1"]
[EndTime "10:55:42 PST"]
[Termination "Snegokhod won on time"]

1. d4 {[%clk 0:03:00.9]} 1... Nf6 {[%clk 0:02:58.9]} 2. c4 {[%clk 0:03:00.7]}
2... c5 {[%clk 0:02:58.7]} 3. Nf3 {[%clk 0:03:00]} 3... e6 {[%clk 0:02:51.5]} 4.
d5 {[%clk 0:02:58.6]} 4... exd5 {[%clk 0:02:51]} 5. cxd5 {[%clk 0:02:58.6]} 5...
d6 {[%clk 0:02:51.7]} 6. Nc3 {[%clk 0:02:58.4]} 6... g6 {[%clk 0:02:51.8]} 7. e4
{[%clk 0:02:57.9]} 7... Bg7 {[%clk 0:02:52.3]} 8. Bd3 {[%clk 0:02:58]} 8... O-O
{[%clk 0:02:50.9]} 9. O-O {[%clk 0:02:57.8]} 9... Re8 {[%clk 0:02:51.3]} 10. h3
{[%clk 0:02:55.8]} 10... c4 {[%clk 0:02:51.3]} 11. Bc2 {[%clk 0:02:53.7]} 11...
b5 {[%clk 0:02:47.6]} 12. Nxb5 {[%clk 0:02:40.9]} 12... Nxe4 {[%clk 0:02:45.7]}
13. Re1 {[%clk 0:02:37.8]} 13... Qb6 {[%clk 0:02:21.6]} 14. Bxe4 {[%clk
0:02:08.6]} 14... Qxb5 {[%clk 0:02:21]} 15. Bf4 {[%clk 0:02:01.2]} 15... Rd8
{[%clk 0:01:42.8]} 16. Rc1 {[%clk 0:01:46.9]} 16... Ba6 {[%clk 0:01:40.5]} 17.
b3 {[%clk 0:01:37.8]} 17... c3 {[%clk 0:01:18.4]} 18. Nd4 {[%clk 0:01:34.1]}
18... Qb6 {[%clk 0:01:05.7]} 19. Be3 {[%clk 0:01:30.2]} 19... Qb4 {[%clk
0:01:05.1]} 20. h4 {[%clk 0:01:06.4]} 20... Nd7 {[%clk 0:00:53.3]} 21. h5 {[%clk
0:01:03.4]} 21... Nc5 {[%clk 0:00:51.7]} 22. Bb1 {[%clk 0:01:01]} 22... Re8
{[%clk 0:00:39.1]} 23. Nc6 {[%clk 0:00:39.4]} 23... Qh4 {[%clk 0:00:28.7]} 24.
h6 {[%clk 0:00:25.7]} 24... Bxh6 {[%clk 0:00:18.7]} 25. Bxh6 {[%clk 0:00:24.7]}
25... Qxh6 {[%clk 0:00:19.6]} 26. Rxc3 {[%clk 0:00:23.1]} 26... Qg7 {[%clk
0:00:10.3]} 27. Rce3 {[%clk 0:00:21.9]} 27... Kf8 {[%clk 0:00:09.2]} 28. Rxe8+
{[%clk 0:00:18.5]} 28... Rxe8 {[%clk 0:00:09.9]} 29. Rxe8+ {[%clk 0:00:18.7]}
29... Kxe8 {[%clk 0:00:10.8]} 30. Qe1+ {[%clk 0:00:19]} 30... Kf8 {[%clk
0:00:07.7]} 31. Qe7+ {[%clk 0:00:18.3]} 31... Kg8 {[%clk 0:00:07.9]} 32. Qxd6
{[%clk 0:00:15.5]} 32... Qc3 {[%clk 0:00:03]} 33. Qb8+ {[%clk 0:00:07.5]} 33...
Kg7 {[%clk 0:00:02.8]} 34. Qe5+ {[%clk 0:00:07.2]} 34... Qxe5 {[%clk 0:00:03]}
35. Nxe5 {[%clk 0:00:07.9]} 35... Kf6 {[%clk 0:00:02.1]} 36. f4 {[%clk 0:00:08]}
36... Ke7 {[%clk 0:00:02.3]} 37. Nc4 {[%clk 0:00:06.5]} 1-0